[Event "Titled Tuesday Blitz June 20 Late 2023"]
[White "Barrionuevo, Pablo"]
[Black "Ionescu, Mihai"]
[WhiteFideId "110566"]
[BlackFideId "1202499"]
[WhiteElo "2212"]
[BlackElo "2279"]
[Result "0-1"]
[Round "7"]
[TimeControl "180+2"]
[Date "2023.06.20"]
[WhiteClock "0:00:50"]
[BlackClock "0:00:21"]
[Board "124"]

1. d4 {[%clk 0:03:00]}  d5 {[%clk 0:02:59]} 2. Nf3 {[%clk 0:02:59]}  Nf6 {[%clk 0:02:58]} 3. Bg5 {[%clk 0:02:59]}  Ne4 {[%clk 0:02:56]} 4. Bh4 {[%clk 0:02:59]}  c5 {[%clk 0:02:55]} 5. c3 {[%clk 0:02:58]}  Qb6 {[%clk 0:02:55]} 6. Qb3 {[%clk 0:02:58]}  c4 {[%clk 0:02:55]} 7. Qc2 {[%clk 0:02:56]}  Bf5 {[%clk 0:02:54]} 8. Qc1 {[%clk 0:02:55]}  e6 {[%clk 0:02:52]} 9. Nbd2 {[%clk 0:02:56]}  Nc6 {[%clk 0:02:50]} 10. Nxe4 {[%clk 0:02:55]}  Bxe4 {[%clk 0:02:50]} 11. Nd2 {[%clk 0:02:55]}  Bg6 {[%clk 0:02:49]} 12. e4 {[%clk 0:02:55]}  Be7 {[%clk 0:02:43]} 13. Bxe7 {[%clk 0:02:54]}  Nxe7 {[%clk 0:02:43]} 14. Be2 {[%clk 0:02:53]}  O-O {[%clk 0:02:42]} 15. O-O {[%clk 0:02:53]}  Qc6 {[%clk 0:02:42]} 16. exd5 {[%clk 0:02:46]}  exd5 {[%clk 0:02:42]} 17. Bf3 {[%clk 0:02:44]}  b5 {[%clk 0:02:41]} 18. b3 {[%clk 0:02:43]}  Rac8 {[%clk 0:02:37]} 19. bxc4 {[%clk 0:02:43]}  bxc4 {[%clk 0:02:37]} 20. Qa3 {[%clk 0:02:43]}  Nf5 {[%clk 0:02:17]} 21. g3 {[%clk 0:02:33]}  Nd6 {[%clk 0:02:16]} 22. Rfe1 {[%clk 0:02:30]}  Rfe8 {[%clk 0:02:09]} 23. Rxe8+ {[%clk 0:02:29]}  Rxe8 {[%clk 0:02:08]} 24. Qxa7 {[%clk 0:02:28]}  Nb5 {[%clk 0:02:06]} 25. Qa5 {[%clk 0:02:29]}  Ra8 {[%clk 0:02:03]} 26. Qb4 {[%clk 0:02:29]}  Na3 {[%clk 0:01:57]} 27. Qb2 {[%clk 0:02:16]}  h6 {[%clk 0:01:53]} 28. Re1 {[%clk 0:02:14]}  Kh7 {[%clk 0:01:47]} 29. Re5 {[%clk 0:02:14]}  Ra5 {[%clk 0:01:47]} 30. Rxd5 {[%clk 0:02:10]}  Rxd5 {[%clk 0:01:42]} 31. Qxa3 {[%clk 0:02:10]}  Qd6 {[%clk 0:01:38]} 32. Nxc4 {[%clk 0:02:03]}  Qxa3 {[%clk 0:01:35]} 33. Nxa3 {[%clk 0:02:03]}  Ra5 {[%clk 0:01:36]} 34. Nc4 {[%clk 0:02:01]}  Rxa2 {[%clk 0:01:35]} 35. Ne5 {[%clk 0:02:01]}  Bf5 {[%clk 0:01:32]} 36. g4 {[%clk 0:01:59]}  Be6 {[%clk 0:01:23]} 37. d5 {[%clk 0:01:57]}  Bc8 {[%clk 0:01:22]} 38. c4 {[%clk 0:01:54]}  f6 {[%clk 0:01:19]} 39. Be4+ {[%clk 0:01:51]}  Kg8 {[%clk 0:01:18]} 40. Nc6 {[%clk 0:01:44]}  Bxg4 {[%clk 0:01:16]} 41. Kg2 {[%clk 0:01:43]}  Ra3 {[%clk 0:01:15]} 42. f3 {[%clk 0:01:41]}  Bd7 {[%clk 0:01:13]} 43. Nb8 {[%clk 0:01:36]}  Bc8 {[%clk 0:01:10]} 44. d6 {[%clk 0:01:37]}  Ra7 {[%clk 0:01:07]} 45. c5 {[%clk 0:01:35]}  f5 {[%clk 0:01:06]} 46. Bd5+ {[%clk 0:01:33]}  Kf8 {[%clk 0:01:06]} 47. c6 {[%clk 0:01:33]}  Ke8 {[%clk 0:01:02]} 48. d7+ {[%clk 0:01:33]}  Kd8 {[%clk 0:00:57]} 49. dxc8=Q+ {[%clk 0:01:31]}  Kxc8 {[%clk 0:00:57]} 50. Nd7 {[%clk 0:01:32]}  Kc7 {[%clk 0:00:56]} 51. Nf8 {[%clk 0:01:29]}  Kd6 {[%clk 0:00:48]} 52. Be6 {[%clk 0:01:03]}  Ra8 {[%clk 0:00:42]} 53. Bxf5 {[%clk 0:01:03]}  Rxf8 {[%clk 0:00:41]} 54. Bd7 {[%clk 0:01:03]}  Rf4 {[%clk 0:00:38]} 55. Kg3 {[%clk 0:01:03]}  Rc4 {[%clk 0:00:38]} 56. f4 {[%clk 0:01:02]}  Ke7 {[%clk 0:00:37]} 57. Kg4 {[%clk 0:01:02]}  Kf6 {[%clk 0:00:37]} 58. h4 {[%clk 0:01:02]}  Rc3 {[%clk 0:00:35]} 59. h5 {[%clk 0:00:59]}  g6 {[%clk 0:00:32]} 60. hxg6 {[%clk 0:00:59]}  Kxg6 {[%clk 0:00:32]} 61. f5+ {[%clk 0:00:58]}  Kf6 {[%clk 0:00:33]} 62. Kf4 {[%clk 0:00:58]}  h5 {[%clk 0:00:32]} 63. Ke4 {[%clk 0:00:57]}  h4 {[%clk 0:00:32]} 64. Kd4 {[%clk 0:00:57]}  Rc1 {[%clk 0:00:31]} 65. Kd5 {[%clk 0:00:54]}  h3 {[%clk 0:00:27]} 66. Kd6 {[%clk 0:00:54]}  h2 {[%clk 0:00:26]} 67. c7 {[%clk 0:00:54]}  h1=Q {[%clk 0:00:24]} 68. c8=Q {[%clk 0:00:53]}  Rxc8 {[%clk 0:00:23]} 69. Bxc8 {[%clk 0:00:53]}  Qe4 {[%clk 0:00:22]} 70. Be6 {[%clk 0:00:53]}  Qe5+ {[%clk 0:00:22]} 71. Kc6 {[%clk 0:00:53]}  Ke7 {[%clk 0:00:22]} 72. Kb6 {[%clk 0:00:52]}  Kd6 {[%clk 0:00:21]} 73. Kb7 {[%clk 0:00:52]}  Qc5 {[%clk 0:00:21]} 74. Kb8 {[%clk 0:00:52]}  Qc7+ {[%clk 0:00:21]} 75. Ka8 {[%clk 0:00:50]}  Kc5 {[%clk 0:00:21]} 0-1


[Site "https://www.chess.com"]

[Event "Titled Tuesday Blitz June 20 Late 2023"]
[White "FuenfgegenWilly"]
[Black "Rodriguez Santiago, Jaime"]
[BlackFideId "3100898"]
[WhiteElo "2409"]
[BlackElo "2025"]
[Result "0-1"]
[Round "7"]
[TimeControl "180+2"]
[Date "2023.06.20"]
[WhiteClock "0:00:18"]
[BlackClock "0:00:10"]
[Board "126"]

1. e4 {[%clk 0:03:00]}  c6 {[%clk 0:02:59]} 2. d4 {[%clk 0:02:59]}  d5 {[%clk 0:02:59]} 3. Nc3 {[%clk 0:03:00]}  dxe4 {[%clk 0:02:59]} 4. Nxe4 {[%clk 0:03:01]}  Nf6 {[%clk 0:02:59]} 5. Nxf6+ {[%clk 0:03:01]}  exf6 {[%clk 0:03:00]} 6. c3 {[%clk 0:03:00]}  Bd6 {[%clk 0:03:00]} 7. Bd3 {[%clk 0:03:00]}  O-O {[%clk 0:02:59]} 8. Ne2 {[%clk 0:03:00]}  Re8 {[%clk 0:02:58]} 9. Qc2 {[%clk 0:03:01]}  h5 {[%clk 0:02:53]} 10. Be3 {[%clk 0:03:00]}  Nd7 {[%clk 0:02:40]} 11. Ng3 {[%clk 0:02:57]}  Nf8 {[%clk 0:02:21]} 12. Nxh5 {[%clk 0:02:38]}  f5 {[%clk 0:02:09]} 13. O-O-O {[%clk 0:02:25]}  g6 {[%clk 0:01:58]} 14. Nf4 {[%clk 0:02:22]}  g5 {[%clk 0:01:39]} 15. Nh5 {[%clk 0:02:17]}  f4 {[%clk 0:01:36]} 16. Bf5 {[%clk 0:01:48]}  fxe3 {[%clk 0:00:54]} 17. Bxc8 {[%clk 0:01:47]}  Qxc8 {[%clk 0:00:53]} 18. Nf6+ {[%clk 0:01:47]}  Kg7 {[%clk 0:00:52]} 19. Nxe8+ {[%clk 0:01:45]}  Qxe8 {[%clk 0:00:52]} 20. fxe3 {[%clk 0:01:46]}  Qxe3+ {[%clk 0:00:51]} 21. Kb1 {[%clk 0:01:46]}  Re8 {[%clk 0:00:48]} 22. Rhf1 {[%clk 0:01:46]}  Bxh2 {[%clk 0:00:40]} 23. Qf5 {[%clk 0:01:45]}  Qe4+ {[%clk 0:00:38]} 24. Qxe4 {[%clk 0:01:41]}  Rxe4 {[%clk 0:00:39]} 25. Kc2 {[%clk 0:01:36]}  Bg3 {[%clk 0:00:37]} 26. Kd3 {[%clk 0:01:34]}  Re7 {[%clk 0:00:36]} 27. Rf3 {[%clk 0:01:34]}  Bd6 {[%clk 0:00:35]} 28. c4 {[%clk 0:01:29]}  Ne6 {[%clk 0:00:35]} 29. g3 {[%clk 0:01:29]}  Kg6 {[%clk 0:00:32]} 30. Rdf1 {[%clk 0:01:28]}  Rd7 {[%clk 0:00:27]} 31. Kc3 {[%clk 0:01:25]}  a5 {[%clk 0:00:25]} 32. a3 {[%clk 0:01:23]}  a4 {[%clk 0:00:24]} 33. Rf5 {[%clk 0:01:09]}  Bc7 {[%clk 0:00:23]} 34. d5 {[%clk 0:01:00]}  cxd5 {[%clk 0:00:22]} 35. Rxd5 {[%clk 0:01:01]}  Re7 {[%clk 0:00:21]} 36. Rf3 {[%clk 0:00:53]}  f6 {[%clk 0:00:20]} 37. Kb4 {[%clk 0:00:53]}  Be5 {[%clk 0:00:19]} 38. Rd2 {[%clk 0:00:49]}  Rc7 {[%clk 0:00:19]} 39. Kxa4 {[%clk 0:00:41]}  Rxc4+ {[%clk 0:00:18]} 40. Kb5 {[%clk 0:00:41]}  Rc7 {[%clk 0:00:17]} 41. b4 {[%clk 0:00:39]}  Nd4+ {[%clk 0:00:17]} 42. Rxd4 {[%clk 0:00:38]}  Bxd4 {[%clk 0:00:18]} 43. Rd3 {[%clk 0:00:38]}  Be5 {[%clk 0:00:18]} 44. a4 {[%clk 0:00:37]}  Re7 {[%clk 0:00:17]} 45. a5 {[%clk 0:00:36]}  Kf5 {[%clk 0:00:15]} 46. Kb6 {[%clk 0:00:34]}  Kg4 {[%clk 0:00:15]} 47. b5 {[%clk 0:00:34]}  Bxg3 {[%clk 0:00:13]} 48. a6 {[%clk 0:00:35]}  bxa6 {[%clk 0:00:13]} 49. bxa6 {[%clk 0:00:36]}  Bf2+ {[%clk 0:00:13]} 50. Kc6 {[%clk 0:00:33]}  f5 {[%clk 0:00:12]} 51. Rd2 {[%clk 0:00:31]}  Be3 {[%clk 0:00:12]} 52. Rg2+ {[%clk 0:00:31]}  Kf4 {[%clk 0:00:11]} 53. Rb2 {[%clk 0:00:30]}  g4 {[%clk 0:00:12]} 54. Rb7 {[%clk 0:00:30]}  Re6+ {[%clk 0:00:12]} 55. Kb5 {[%clk 0:00:30]}  g3 {[%clk 0:00:12]} 56. Rf7 {[%clk 0:00:22]}  Rg6 {[%clk 0:00:11]} 57. Kc4 {[%clk 0:00:18]}  g2 {[%clk 0:00:10]} 0-1


[Site "https://www.chess.com"]

[Event "Titled Tuesday Blitz June 20 Late 2023"]
[White "ArchibaldCerveza29"]
[Black "Sanchez, Robert"]
[BlackFideId "2034360"]
[WhiteElo "2433"]
[BlackElo "2077"]
[Result "1-0"]
[Round "7"]
[TimeControl "180+2"]
[Date "2023.06.20"]
[WhiteClock "0:01:32"]
[BlackClock "0:00:12"]
[Board "131"]

1. e4 {[%clk 0:02:56]}  e6 {[%clk 0:02:59]} 2. d4 {[%clk 0:02:54]}  d5 {[%clk 0:03:00]} 3. Nd2 {[%clk 0:02:53]}  Nf6 {[%clk 0:03:00]} 4. Bd3 {[%clk 0:02:53]}  c5 {[%clk 0:02:59]} 5. c3 {[%clk 0:02:52]}  Nc6 {[%clk 0:02:59]} 6. Ngf3 {[%clk 0:02:52]}  cxd4 {[%clk 0:02:58]} 7. cxd4 {[%clk 0:02:53]}  dxe4 {[%clk 0:02:52]} 8. Nxe4 {[%clk 0:02:54]}  Nxe4 {[%clk 0:02:51]} 9. Bxe4 {[%clk 0:02:55]}  Bb4+ {[%clk 0:02:52]} 10. Bd2 {[%clk 0:02:55]}  Bxd2+ {[%clk 0:02:50]} 11. Qxd2 {[%clk 0:02:56]}  O-O {[%clk 0:02:49]} 12. h4 {[%clk 0:02:57]}  f5 {[%clk 0:02:45]} 13. Bc2 {[%clk 0:02:48]}  Bd7 {[%clk 0:02:40]} 14. O-O-O {[%clk 0:02:48]}  Rc8 {[%clk 0:02:39]} 15. Kb1 {[%clk 0:02:48]}  Na5 {[%clk 0:02:30]} 16. Ne5 {[%clk 0:02:44]}  Bc6 {[%clk 0:02:15]} 17. h5 {[%clk 0:02:38]}  Bd5 {[%clk 0:02:07]} 18. Rhg1 {[%clk 0:02:31]}  Nc4 {[%clk 0:01:47]} 19. Nxc4 {[%clk 0:02:31]}  Rxc4 {[%clk 0:01:46]} 20. g4 {[%clk 0:02:27]}  Rxc2 {[%clk 0:01:44]} 21. Kxc2 {[%clk 0:02:25]}  Be4+ {[%clk 0:01:43]} 22. Kc1 {[%clk 0:02:25]}  Qd6 {[%clk 0:00:58]} 23. Rg3 {[%clk 0:02:20]}  fxg4 {[%clk 0:00:47]} 24. Re1 {[%clk 0:02:13]}  Bf3 {[%clk 0:00:40]} 25. h6 {[%clk 0:02:05]}  gxh6 {[%clk 0:00:35]} 26. Qxh6 {[%clk 0:02:01]}  Rc8+ {[%clk 0:00:21]} 27. Kb1 {[%clk 0:02:01]}  Rc6 {[%clk 0:00:17]} 28. Rxf3 {[%clk 0:01:49]}  gxf3 {[%clk 0:00:15]} 29. Rg1+ {[%clk 0:01:48]}  Kf7 {[%clk 0:00:15]} 30. Qxh7+ {[%clk 0:01:32]}  Kf6 {[%clk 0:00:12]} 1-0


[Site "https://www.chess.com"]

[Event "Titled Tuesday Blitz June 20 Late 2023"]
[White "Calhoun, Luke"]
[Black "Prydun, Andriy"]
[WhiteFideId "2064421"]
[BlackFideId "14145898"]
[WhiteElo "2255"]
[BlackElo "2164"]
[Result "1-0"]
[Round "7"]
[TimeControl "180+2"]
[Date "2023.06.20"]
[WhiteClock "0:02:33"]
[BlackClock "0:00:00"]
[Board "132"]

1. e4 {[%clk 0:02:58]}  c6 {[%clk 0:02:41]} 2. d4 {[%clk 0:02:57]}  d5 {[%clk 0:02:42]} 3. Nd2 {[%clk 0:02:56]}  dxe4 {[%clk 0:02:40]} 4. Nxe4 {[%clk 0:02:57]}  Nd7 {[%clk 0:02:39]} 5. Nf3 {[%clk 0:02:56]}  Ngf6 {[%clk 0:02:34]} 6. Nxf6+ {[%clk 0:02:56]}  Nxf6 {[%clk 0:02:33]} 7. Bc4 {[%clk 0:02:55]}  Bf5 {[%clk 0:01:07]} 8. Ne5 {[%clk 0:02:43]}  Bg6 {[%clk 0:00:31]} 9. Nxg6 {[%clk 0:02:41]}  hxg6 {[%clk 0:00:31]} 10. Bf4 {[%clk 0:02:36]}  e6 {[%clk 0:00:00]} 11. Qd2 {[%clk 0:02:33]} 1-0


[Site "https://www.chess.com"]

[Event "Titled Tuesday Blitz June 20 Late 2023"]
[White "zano2023"]
[Black "Lalanne, Pablo"]
[BlackFideId "112151"]
[WhiteElo "2191"]
[BlackElo "2120"]
[Result "1-0"]
[Round "7"]
[TimeControl "180+2"]
[Date "2023.06.20"]
[WhiteClock "0:00:23"]
[BlackClock "0:00:00"]
[Board "133"]

1. d4 {[%clk 0:03:00]}  Nf6 {[%clk 0:02:59]} 2. Nd2 {[%clk 0:03:00]}  d5 {[%clk 0:02:58]} 3. Ngf3 {[%clk 0:02:59]}  Bf5 {[%clk 0:02:57]} 4. e3 {[%clk 0:03:00]}  e6 {[%clk 0:02:57]} 5. c4 {[%clk 0:03:00]}  c6 {[%clk 0:02:54]} 6. Qb3 {[%clk 0:03:00]}  Qb6 {[%clk 0:02:53]} 7. c5 {[%clk 0:03:01]}  Qc7 {[%clk 0:02:53]} 8. Bd3 {[%clk 0:03:00]}  Bxd3 {[%clk 0:02:52]} 9. Qxd3 {[%clk 0:03:01]}  b6 {[%clk 0:02:51]} 10. b4 {[%clk 0:02:59]}  a5 {[%clk 0:02:51]} 11. cxb6 {[%clk 0:02:59]}  Qxb6 {[%clk 0:02:50]} 12. bxa5 {[%clk 0:03:00]}  Rxa5 {[%clk 0:02:44]} 13. a4 {[%clk 0:02:49]}  Nbd7 {[%clk 0:02:34]} 14. O-O {[%clk 0:02:46]}  Bd6 {[%clk 0:02:28]} 15. Nb3 {[%clk 0:02:44]}  Qa6 {[%clk 0:02:23]} 16. Qxa6 {[%clk 0:02:23]}  Rxa6 {[%clk 0:02:22]} 17. Ba3 {[%clk 0:02:17]}  Ke7 {[%clk 0:02:18]} 18. Rfc1 {[%clk 0:02:14]}  Rha8 {[%clk 0:02:10]} 19. a5 {[%clk 0:02:06]}  Ne4 {[%clk 0:02:07]} 20. Rc2 {[%clk 0:01:44]}  Rb8 {[%clk 0:02:05]} 21. Nbd2 {[%clk 0:01:41]}  Nxd2 {[%clk 0:01:51]} 22. Nxd2 {[%clk 0:01:40]}  Rb5 {[%clk 0:01:45]} 23. Kf1 {[%clk 0:01:27]}  Bxa3 {[%clk 0:01:23]} 24. Rxa3 {[%clk 0:01:24]}  c5 {[%clk 0:01:23]} 25. dxc5 {[%clk 0:01:21]}  Nxc5 {[%clk 0:01:23]} 26. Rac3 {[%clk 0:01:13]}  Raxa5 {[%clk 0:01:15]} 27. g3 {[%clk 0:01:13]}  g5 {[%clk 0:01:02]} 28. Nf3 {[%clk 0:01:11]}  h6 {[%clk 0:00:56]} 29. Nd4 {[%clk 0:01:09]}  Rb1+ {[%clk 0:00:56]} 30. Kg2 {[%clk 0:01:09]}  Ne4 {[%clk 0:00:55]} 31. Rc7+ {[%clk 0:01:07]}  Kf6 {[%clk 0:00:55]} 32. f3 {[%clk 0:00:55]}  Nd6 {[%clk 0:00:43]} 33. Rd7 {[%clk 0:00:54]}  Nf5 {[%clk 0:00:32]} 34. Nxf5 {[%clk 0:00:47]}  Kxf5 {[%clk 0:00:27]} 35. Rxf7+ {[%clk 0:00:45]}  Ke5 {[%clk 0:00:25]} 36. Rc6 {[%clk 0:00:41]}  Ra2+ {[%clk 0:00:24]} 37. Kh3 {[%clk 0:00:41]}  Rh1 {[%clk 0:00:24]} 38. f4+ {[%clk 0:00:41]}  Ke4 {[%clk 0:00:21]} 39. Rxe6+ {[%clk 0:00:40]}  Kd3 {[%clk 0:00:20]} 40. fxg5 {[%clk 0:00:37]}  Raxh2+ {[%clk 0:00:19]} 41. Kg4 {[%clk 0:00:37]}  hxg5 {[%clk 0:00:19]} 42. Kxg5 {[%clk 0:00:37]}  Rg2 {[%clk 0:00:19]} 43. g4 {[%clk 0:00:37]}  Rhg1 {[%clk 0:00:19]} 44. Rf4 {[%clk 0:00:37]}  Rg3 {[%clk 0:00:19]} 45. Re5 {[%clk 0:00:37]}  Rxe3 {[%clk 0:00:19]} 46. Rxd5+ {[%clk 0:00:37]}  Ke2 {[%clk 0:00:19]} 47. Rdf5 {[%clk 0:00:36]}  Reg3 {[%clk 0:00:19]} 48. Rf2+ {[%clk 0:00:35]}  Ke3 {[%clk 0:00:19]} 49. R5f4 {[%clk 0:00:31]}  Rh1 {[%clk 0:00:16]} 50. Rf1 {[%clk 0:00:28]}  Rxf1 {[%clk 0:00:14]} 51. Rxf1 {[%clk 0:00:28]}  Ke4 {[%clk 0:00:15]} 52. Kh5 {[%clk 0:00:27]}  Ke5 {[%clk 0:00:15]} 53. g5 {[%clk 0:00:27]}  Rh3+ {[%clk 0:00:15]} 54. Kg6 {[%clk 0:00:27]}  Ra3 {[%clk 0:00:14]} 55. Kh6 {[%clk 0:00:26]}  Rh3+ {[%clk 0:00:13]} 56. Kg7 {[%clk 0:00:26]}  Ke6 {[%clk 0:00:12]} 57. g6 {[%clk 0:00:26]}  Rh2 {[%clk 0:00:12]} 58. Re1+ {[%clk 0:00:26]}  Kf5 {[%clk 0:00:11]} 59. Rf1+ {[%clk 0:00:26]}  Ke6 {[%clk 0:00:11]} 60. Kg8 {[%clk 0:00:25]}  Ke7 {[%clk 0:00:11]} 61. g7 {[%clk 0:00:25]}  Rh3 {[%clk 0:00:10]} 62. Re1+ {[%clk 0:00:25]}  Kf6 {[%clk 0:00:10]} 63. Kf8 {[%clk 0:00:26]}  Ra3 {[%clk 0:00:06]} 64. Rf1+ {[%clk 0:00:23]}  Ke5 {[%clk 0:00:00]} 65. g8=Q {[%clk 0:00:23]} 1-0


[Site "https://www.chess.com"]

[Event "Titled Tuesday Blitz June 20 Late 2023"]
[White "Kornyukov, Alexey"]
[Black "Dmitriev, Sergey"]
[WhiteFideId "4150457"]
[BlackFideId "14101785"]
[WhiteElo "2352"]
[BlackElo "2132"]
[Result "1-0"]
[Round "7"]
[TimeControl "180+2"]
[Date "2023.06.20"]
[WhiteClock "0:00:17"]
[BlackClock "0:00:34"]
[Board "136"]

1. d4 {[%clk 0:03:00]}  d6 {[%clk 0:03:00]} 2. c4 {[%clk 0:03:00]}  g6 {[%clk 0:02:59]} 3. Nc3 {[%clk 0:03:00]}  Bg7 {[%clk 0:02:59]} 4. e4 {[%clk 0:03:01]}  Nf6 {[%clk 0:02:59]} 5. f3 {[%clk 0:03:01]}  O-O {[%clk 0:02:59]} 6. Bg5 {[%clk 0:03:01]}  Nc6 {[%clk 0:02:59]} 7. Nge2 {[%clk 0:03:00]}  e5 {[%clk 0:02:58]} 8. d5 {[%clk 0:03:00]}  Ne7 {[%clk 0:02:57]} 9. Qd2 {[%clk 0:02:59]}  Nd7 {[%clk 0:02:52]} 10. g4 {[%clk 0:02:59]}  f6 {[%clk 0:02:51]} 11. Be3 {[%clk 0:02:38]}  f5 {[%clk 0:02:46]} 12. gxf5 {[%clk 0:02:26]}  gxf5 {[%clk 0:02:45]} 13. Rg1 {[%clk 0:02:27]}  f4 {[%clk 0:02:44]} 14. Bf2 {[%clk 0:02:22]}  Ng6 {[%clk 0:02:43]} 15. O-O-O {[%clk 0:02:16]}  Nh4 {[%clk 0:02:28]} 16. Bg2 {[%clk 0:02:15]}  a6 {[%clk 0:02:23]} 17. Bh1 {[%clk 0:02:10]}  Nb6 {[%clk 0:02:07]} 18. b3 {[%clk 0:02:02]}  Bh3 {[%clk 0:02:04]} 19. Kb2 {[%clk 0:01:50]}  Kh8 {[%clk 0:02:02]} 20. Nc1 {[%clk 0:01:47]}  a5 {[%clk 0:01:56]} 21. Nd3 {[%clk 0:01:46]}  a4 {[%clk 0:01:53]} 22. Qe1 {[%clk 0:01:44]}  Ng6 {[%clk 0:01:47]} 23. Bg2 {[%clk 0:01:43]}  Bxg2 {[%clk 0:01:42]} 24. Rxg2 {[%clk 0:01:44]}  axb3 {[%clk 0:01:41]} 25. axb3 {[%clk 0:01:44]}  Qd7 {[%clk 0:01:41]} 26. Rg4 {[%clk 0:01:28]}  Ra5 {[%clk 0:01:27]} 27. h4 {[%clk 0:01:24]}  Bh6 {[%clk 0:01:07]} 28. h5 {[%clk 0:01:19]}  Ne7 {[%clk 0:01:06]} 29. Bh4 {[%clk 0:01:17]}  Raa8 {[%clk 0:01:03]} 30. Qf2 {[%clk 0:01:09]}  Rg8 {[%clk 0:01:01]} 31. Bf6+ {[%clk 0:01:08]}  Bg7 {[%clk 0:00:59]} 32. Rxg7 {[%clk 0:01:08]}  Rxg7 {[%clk 0:00:59]} 33. h6 {[%clk 0:01:08]}  Rg8 {[%clk 0:00:55]} 34. hxg7+ {[%clk 0:01:00]}  Rxg7 {[%clk 0:00:54]} 35. Rg1 {[%clk 0:01:00]}  Ng6 {[%clk 0:00:54]} 36. Qh2 {[%clk 0:00:49]}  Kg8 {[%clk 0:00:54]} 37. Bxg7 {[%clk 0:00:48]}  Kxg7 {[%clk 0:00:54]} 38. c5 {[%clk 0:00:42]}  dxc5 {[%clk 0:00:51]} 39. Nxc5 {[%clk 0:00:41]}  Qe7 {[%clk 0:00:52]} 40. Ne6+ {[%clk 0:00:39]}  Kg8 {[%clk 0:00:51]} 41. Qh5 {[%clk 0:00:30]}  Nd7 {[%clk 0:00:48]} 42. Qf5 {[%clk 0:00:20]}  Nf6 {[%clk 0:00:48]} 43. Qxe5 {[%clk 0:00:19]}  Kf7 {[%clk 0:00:46]} 44. Qf5 {[%clk 0:00:18]}  Qd7 {[%clk 0:00:40]} 45. e5 {[%clk 0:00:17]}  Ne7 {[%clk 0:00:34]} 46. Qxf6+ {[%clk 0:00:17]}  Ke8 {[%clk 0:00:34]} 47. Qf8# {[%clk 0:00:17]} 1-0


[Site "https://www.chess.com"]

[Event "Titled Tuesday Blitz June 20 Late 2023"]
[White "Gyulamiryan-koryun"]
[Black "Nunez V, Gustavo Eduardo"]
[BlackFideId "4403690"]
[WhiteElo "1897"]
[BlackElo "2168"]
[Result "0-1"]
[Round "7"]
[TimeControl "180+2"]
[Date "2023.06.20"]
[WhiteClock "0:00:00"]
[BlackClock "0:01:01"]
[Board "137"]

1. e4 {[%clk 0:02:53]}  c5 {[%clk 0:02:59]} 2. Be2 {[%clk 0:02:51]}  Nc6 {[%clk 0:02:59]} 3. f4 {[%clk 0:02:51]}  g6 {[%clk 0:02:59]} 4. Nf3 {[%clk 0:02:50]}  Bg7 {[%clk 0:02:59]} 5. c3 {[%clk 0:02:50]}  d5 {[%clk 0:02:58]} 6. e5 {[%clk 0:02:49]}  d4 {[%clk 0:02:53]} 7. d3 {[%clk 0:02:47]}  Nh6 {[%clk 0:02:52]} 8. O-O {[%clk 0:02:47]}  O-O {[%clk 0:02:52]} 9. a3 {[%clk 0:02:41]}  a5 {[%clk 0:02:44]} 10. Nbd2 {[%clk 0:02:37]}  Nf5 {[%clk 0:02:39]} 11. Ne4 {[%clk 0:02:36]}  b6 {[%clk 0:02:40]} 12. g4 {[%clk 0:02:34]}  Ne3 {[%clk 0:02:39]} 13. Bxe3 {[%clk 0:02:34]}  dxe3 {[%clk 0:02:40]} 14. Qc1 {[%clk 0:02:27]}  Bxg4 {[%clk 0:02:36]} 15. Qxe3 {[%clk 0:02:25]}  h6 {[%clk 0:02:31]} 16. Kf2 {[%clk 0:02:20]}  Qd7 {[%clk 0:02:15]} 17. Rg1 {[%clk 0:02:19]}  Rad8 {[%clk 0:02:14]} 18. Rad1 {[%clk 0:02:17]}  Qc8 {[%clk 0:02:01]} 19. Rg3 {[%clk 0:02:02]}  Rd5 {[%clk 0:01:55]} 20. Rdg1 {[%clk 0:02:00]}  Rfd8 {[%clk 0:01:54]} 21. Rxg4 {[%clk 0:01:57]}  c4 {[%clk 0:01:53]} 22. Nd4 {[%clk 0:01:44]}  Nxd4 {[%clk 0:01:50]} 23. cxd4 {[%clk 0:01:44]}  cxd3 {[%clk 0:01:50]} 24. Bxd3 {[%clk 0:01:36]}  Rxd4 {[%clk 0:01:50]} 25. Bb1 {[%clk 0:01:29]}  Rd1 {[%clk 0:01:46]} 26. Nd6 {[%clk 0:01:18]}  exd6 {[%clk 0:01:42]} 27. e6 {[%clk 0:01:00]}  Rxg1 {[%clk 0:01:31]} 28. exf7+ {[%clk 0:01:00]}  Kxf7 {[%clk 0:01:18]} 29. Bxg6+ {[%clk 0:00:57]}  Kf8 {[%clk 0:01:18]} 30. Rxg1 {[%clk 0:00:51]}  Qc5 {[%clk 0:01:14]} 31. Rc1 {[%clk 0:00:38]}  Bd4 {[%clk 0:01:10]} 32. Rxc5 {[%clk 0:00:36]}  Bxe3+ {[%clk 0:01:09]} 33. Kxe3 {[%clk 0:00:33]}  dxc5 {[%clk 0:01:10]} 34. Bd3 {[%clk 0:00:21]}  Ke7 {[%clk 0:01:09]} 35. h4 {[%clk 0:00:13]}  Kf6 {[%clk 0:01:08]} 36. h5 {[%clk 0:00:12]}  Rd4 {[%clk 0:01:06]} 37. b3 {[%clk 0:00:10]}  a4 {[%clk 0:01:06]} 38. b4 {[%clk 0:00:09]}  Rxd3+ {[%clk 0:00:59]} 39. Kxd3 {[%clk 0:00:05]}  cxb4 {[%clk 0:01:00]} 40. axb4 {[%clk 0:00:00]}  b5 {[%clk 0:01:01]} 0-1


[Site "https://www.chess.com"]

[Event "Titled Tuesday Blitz June 20 Late 2023"]
[White "Burke, Paul"]
[Black "Cueto, Jonny"]
[WhiteFideId "2605767"]
[BlackFideId "3300145"]
[WhiteElo "1910"]
[BlackElo "2240"]
[Result "1-0"]
[Round "7"]
[TimeControl "180+2"]
[Date "2023.06.20"]
[WhiteClock "0:00:17"]
[BlackClock "0:00:05"]
[Board "142"]

1. e4 {[%clk 0:02:44]}  e6 {[%clk 0:02:52]} 2. d4 {[%clk 0:02:43]}  d5 {[%clk 0:02:52]} 3. e5 {[%clk 0:02:43]}  c5 {[%clk 0:02:52]} 4. Qg4 {[%clk 0:02:43]}  Nc6 {[%clk 0:02:52]} 5. Nf3 {[%clk 0:02:43]}  cxd4 {[%clk 0:02:40]} 6. Bd3 {[%clk 0:02:43]}  f5 {[%clk 0:02:24]} 7. Qg3 {[%clk 0:02:42]}  Bb4+ {[%clk 0:01:59]} 8. c3 {[%clk 0:02:41]}  dxc3 {[%clk 0:01:44]} 9. bxc3 {[%clk 0:02:40]}  Bf8 {[%clk 0:01:42]} 10. O-O {[%clk 0:02:40]}  Qc7 {[%clk 0:01:36]} 11. Na3 {[%clk 0:02:33]}  a6 {[%clk 0:01:33]} 12. Nc2 {[%clk 0:02:30]}  h6 {[%clk 0:01:29]} 13. h4 {[%clk 0:02:27]}  Qf7 {[%clk 0:01:28]} 14. Ncd4 {[%clk 0:02:12]}  Bc5 {[%clk 0:01:28]} 15. Re1 {[%clk 0:02:02]}  Nge7 {[%clk 0:01:25]} 16. Bf4 {[%clk 0:01:27]}  Bxd4 {[%clk 0:01:25]} 17. cxd4 {[%clk 0:01:26]}  Bd7 {[%clk 0:01:25]} 18. Rab1 {[%clk 0:01:13]}  b5 {[%clk 0:01:18]} 19. Rec1 {[%clk 0:01:08]}  Rc8 {[%clk 0:01:05]} 20. a4 {[%clk 0:00:50]}  b4 {[%clk 0:01:05]} 21. Bxa6 {[%clk 0:00:49]}  Ra8 {[%clk 0:01:05]} 22. Bb5 {[%clk 0:00:48]}  Rc8 {[%clk 0:00:27]} 23. Rc5 {[%clk 0:00:48]}  Na7 {[%clk 0:00:13]} 24. Bxd7+ {[%clk 0:00:39]}  Kxd7 {[%clk 0:00:14]} 25. Rxb4 {[%clk 0:00:33]}  Rxc5 {[%clk 0:00:14]} 26. dxc5 {[%clk 0:00:33]}  Nac6 {[%clk 0:00:11]} 27. Rb7+ {[%clk 0:00:29]}  Kc8 {[%clk 0:00:11]} 28. Rb6 {[%clk 0:00:29]}  Kc7 {[%clk 0:00:08]} 29. Nd2 {[%clk 0:00:23]}  Ra8 {[%clk 0:00:08]} 30. Qb3 {[%clk 0:00:21]}  Qe8 {[%clk 0:00:04]} 31. Rb7+ {[%clk 0:00:20]}  Kc8 {[%clk 0:00:05]} 32. Qb6 {[%clk 0:00:18]}  Na5 {[%clk 0:00:05]} 33. Qc7# {[%clk 0:00:17]} 1-0


[Site "https://www.chess.com"]